fUST/lending_fUST_20251115
["ID","MTS","AMOUNT","RATE_DAILY","PERIOD"]
[394029314,1763200321354,-500.0,0.00052054,120]
[394029315,1763200321363,-500.0,0.00052054,120]
[394029316,1763200321372,-1000.0,0.00052054,2]
[394029317,1763200321381,-221.6,0.00052054,120]
[394029318,1763200321390,-1000.0,0.00052054,2]
[394029319,1763200321399,-500.0,0.00052054,120]
[394029320,1763200321408,-500.0,0.00052054,120]
[394029321,1763200321417,-812.44,0.00052054,2]
[394029322,1763200321426,-557.41,0.00052054,120]
[394029323,1763200321436,-1000.0,0.00052054,30]
[394029324,1763200321445,-999.0,0.00052054,120]
[394029325,1763200321454,-500.0,0.00052055,120]
[394029326,1763200321463,-500.0,0.00052055,120]
[394029327,1763200321472,-437.34563427,0.00052055,120]
[394029328,1763200321481,-500.0,0.00052055,120]
[394029329,1763200321490,-500.0,0.00052055,120]
[394029330,1763200321499,-500.0,0.00052055,120]
[394029331,1763200321508,-500.0,0.00052055,120]
[394029332,1763200321517,-500.0,0.00052055,120]
[394029333,1763200321526,-500.0,0.00052055,120]
[394029334,1763200321536,-500.0,0.00052055,120]
[394029335,1763200321545,-500.0,0.00052055,120]
[394029336,1763200321554,-433.57594791,0.00052055,120]
[394029337,1763200321563,-151.0,0.00052055,120]
[394029338,1763200321572,-151.0,0.00052055,120]
[394029339,1763200321582,-190.70567027,0.00052055,120]
[394029340,1763200321591,-762.0,0.00052055,120]
[394029341,1763200321600,-762.0,0.00052055,120]
[394029342,1763200321610,-762.0,0.00052055,120]
[394029343,1763200321619,-762.0,0.00052055,120]
[394029344,1763200321628,-762.0,0.00052055,120]
[394029345,1763200321638,-762.0,0.00052055,120]
[394029346,1763200321649,-762.0,0.00052055,120]
[394029347,1763200321658,-762.0,0.00052055,120]
[394029348,1763200321669,-762.0,0.00052055,120]
[394029349,1763200321679,-762.0,0.00052055,120]
[394029350,1763200321689,-762.0,0.00052055,120]
[394029351,1763200321698,-762.0,0.00052055,120]
[394029352,1763200321707,-762.0,0.00052055,120]
[394029353,1763200321717,-762.0,0.00052055,120]
[394029354,1763200321727,-762.0,0.00052055,120]
[394029355,1763200321736,-762.0,0.00052055,120]
[394029356,1763200321746,-762.0,0.00052055,120]
[394029357,1763200321755,-762.0,0.00052055,120]
[394029358,1763200321765,-762.0,0.00052055,120]
[394029359,1763200321774,-762.0,0.00052055,120]
[394029360,1763200321785,-762.0,0.00052055,120]
[394029361,1763200321794,-762.0,0.00052055,120]
[394029362,1763200321804,-762.0,0.00052055,120]
[394029363,1763200321814,-771.76030017,0.00052055,120]
[394029364,1763200321824,-158.21454494,0.00052055,46]
[394029365,1763200321834,-151.0,0.00052055,120]
[394029366,1763200321843,-151.0,0.00052055,120]
[394029367,1763200321852,-151.0,0.00052055,120]
[394029368,1763200321862,-156.72360121,0.00052055,120]
[394029369,1763200321871,-151.0,0.00052055,120]
[394029370,1763200321880,-151.0,0.00052055,120]
[394029371,1763200321890,-204.40965187,0.00052055,120]
[394029372,1763200321899,-152.33262979,0.00052055,120]
[394029373,1763200321908,-500.0,0.00052055,120]
[394029374,1763200321917,-500.0,0.00052055,120]
[394029375,1763200321927,-500.0,0.00052055,120]
[394029376,1763200321935,-500.0,0.00052055,120]
[394029377,1763200321944,-500.0,0.00052055,120]
[394029378,1763200321954,-500.0,0.00052055,120]
[394029379,1763200321962,-500.0,0.00052055,120]
[394029380,1763200321971,-500.0,0.00052055,120]
[394029381,1763200321981,-500.0,0.00052055,120]
[394029382,1763200321990,-500.0,0.00052055,120]
[394029383,1763200322000,-500.0,0.00052055,120]
[394029384,1763200322009,-500.0,0.00052055,120]
[394029385,1763200322018,-500.0,0.00052055,120]
[394029386,1763200322028,-500.0,0.00052055,120]
[394029387,1763200322038,-500.0,0.00052055,120]
[394029388,1763200322047,-292.23709945,0.00052055,120]
[394029389,1763200322056,-500.0,0.00052055,120]
[394029390,1763200322065,-500.0,0.00052055,120]
[394029391,1763200322075,-500.0,0.00052055,120]
[394029392,1763200322085,-500.0,0.00052055,120]
[394029393,1763200322094,-500.0,0.00052055,120]
[394029394,1763200322103,-500.0,0.00052055,120]
[394029395,1763200322112,-500.0,0.00052055,120]
[394029396,1763200322121,-500.0,0.00052055,120]
[394029397,1763200322130,-500.0,0.00052055,120]
[394029398,1763200322139,-500.0,0.00052055,120]
[394029399,1763200322147,-500.0,0.00052055,120]
[394029400,1763200322156,-500.0,0.00052055,120]
[394029401,1763200322165,-500.0,0.00052055,120]
[394029402,1763200322174,-337.33619941,0.00052055,120]
[394029403,1763200322183,-225.83817913,0.00052055,120]
[394029404,1763200322192,-151.0,0.00052055,120]
[394029405,1763200322202,-151.0,0.00052055,120]
[394029406,1763200322215,-151.0,0.00052055,120]
[394029407,1763200322223,-151.0,0.00052055,120]
[394029408,1763200322232,-500.0,0.00052055,120]
[394029409,1763200322244,-501.11232177,0.00052055,120]
[394029410,1763200322255,-500.0,0.00052055,46]
[394029411,1763200322265,-500.0,0.00052055,46]
[394029412,1763200322275,-500.0,0.00052055,46]
[394029413,1763200322285,-500.0,0.00052055,46]
[394029414,1763200322294,-500.0,0.00052055,46]
[394029415,1763200322304,-500.0,0.00052055,46]
[394029416,1763200322315,-500.0,0.00052055,46]
[394029417,1763200322326,-500.0,0.00052055,46]
[394029418,1763200322336,-500.0,0.00052055,46]
[394029419,1763200322347,-500.0,0.00052055,46]
[394029420,1763200322358,-500.0,0.00052055,46]
[394029421,1763200322368,-500.0,0.00052055,46]
[394029422,1763200322377,-500.0,0.00052055,46]
[394029423,1763200322386,-500.0,0.00052055,46]
[394029424,1763200322395,-500.0,0.00052055,46]
[394029425,1763200322405,-500.0,0.00052055,46]
[394029426,1763200322415,-500.0,0.00052055,46]
[394029427,1763200322425,-616.30218732,0.00052055,46]
[394029428,1763200322435,-151.0,0.00052055,120]
[394029429,1763200322444,-151.0,0.00052055,120]
[394029430,1763200322453,-231.4868654,0.00052055,120]
[394029431,1763200322462,-225.01292914,0.00052055,120]
[394029432,1763200322472,-500.0,0.00052055,120]
[394029433,1763200322481,-500.0,0.00052055,120]
[394029434,1763200322492,-500.0,0.00052055,120]
[394029435,1763200322502,-500.0,0.00052055,120]
[394029436,1763200322512,-500.0,0.00052055,120]
[394029437,1763200322522,-500.0,0.00052055,120]
[394029438,1763200322531,-171.60734707,0.00052055,120]
[394029439,1763200322541,-500.0,0.00052055,120]
[394029440,1763200322550,-500.0,0.00052055,120]
[394029441,1763200322559,-500.0,0.00052055,120]
[394029442,1763200322568,-500.0,0.00052055,120]
[394029443,1763200322577,-500.0,0.00052055,120]
[394029444,1763200322587,-500.0,0.00052055,120]
[394029445,1763200322596,-500.0,0.00052055,120]
[394029446,1763200322606,-500.0,0.00052055,120]
[394029447,1763200322615,-500.0,0.00052055,120]
[394029448,1763200322625,-373.35590057,0.00052055,120]
[394029449,1763200322634,-500.0,0.00052055,120]
[394029450,1763200322644,-500.0,0.00052055,120]
[394029451,1763200322653,-500.0,0.00052055,120]
[394029452,1763200322663,-500.0,0.00052055,120]
[394029453,1763200322673,-157.85829881,0.00052055,120]
[394029454,1763200322682,-500.0,0.00052055,120]
[394029455,1763200322692,-500.0,0.00052055,120]
[394029456,1763200322701,-500.0,0.00052055,120]
[394029457,1763200322710,-500.0,0.00052055,120]
[394029458,1763200322720,-500.0,0.00052055,120]
[394029459,1763200322729,-500.0,0.00052055,120]
[394029460,1763200322739,-186.41687856,0.00052055,120]
[394029461,1763200322748,-500.0,0.00052055,120]
[394029462,1763200322757,-500.0,0.00052055,120]
[394029463,1763200322767,-500.0,0.00052055,120]
[394029464,1763200322776,-338.20949866,0.00052055,120]
[394029465,1763200322785,-500.0,0.00052055,120]
[394029466,1763200322794,-500.0,0.00052055,120]
[394029467,1763200322804,-500.0,0.00052055,120]
[394029468,1763200322813,-500.0,0.00052055,120]
[394029469,1763200322822,-196.66275666,0.00052055,120]
[394029470,1763200322832,-536.0,0.00052055,120]
[394029471,1763200322841,-536.0,0.00052055,120]
[394029472,1763200322851,-536.0,0.00052055,120]
[394029473,1763200322861,-536.0,0.00052055,120]
[394029474,1763200322870,-536.0,0.00052055,120]
[394029475,1763200322879,-536.0,0.00052055,120]
[394029476,1763200322889,-536.0,0.00052055,120]
[394029477,1763200322898,-536.0,0.00052055,120]
[394029478,1763200322908,-536.0,0.00052055,120]
[394029479,1763200322917,-536.0,0.00052055,120]
[394029480,1763200322926,-536.0,0.00052055,120]
[394029481,1763200322936,-536.0,0.00052055,120]
[394029482,1763200322945,-536.0,0.00052055,120]
[394029483,1763200322955,-536.0,0.00052055,120]
[394029484,1763200322964,-536.0,0.00052055,120]
[394029485,1763200322974,-536.0,0.00052055,120]
[394029486,1763200322983,-536.0,0.00052055,120]
[394029487,1763200322992,-536.0,0.00052055,120]
[394029488,1763200323002,-536.0,0.00052055,120]
[394029489,1763200323011,-536.0,0.00052055,120]
[394029490,1763200323020,-536.0,0.00052055,120]
[394029491,1763200323030,-536.0,0.00052055,120]
[394029492,1763200323039,-536.0,0.00052055,120]
[394029493,1763200323048,-548.67480175,0.00052055,120]
[394029494,1763200323057,-500.0,0.00052055,120]
[394029495,1763200323066,-500.0,0.00052055,120]
[394029496,1763200323075,-500.0,0.00052055,120]
[394029497,1763200323084,-500.0,0.00052055,120]
[394029498,1763200323093,-500.0,0.00052055,120]
[394029499,1763200323102,-152.54755291,0.00052055,120]
[394029500,1763200323112,-151.0,0.00052055,120]
[394029501,1763200323122,-151.0,0.00052055,120]
[394029502,1763200323131,-151.0,0.00052055,120]
[394029503,1763200323139,-151.0,0.00052055,120]
[394029504,1763200323148,-298.64944631,0.00052055,120]
[394029505,1763200323157,-151.2356779,0.00052055,120]
[394029506,1763200323166,-151.0,0.00052055,120]
[394029507,1763200323175,-155.64194029,0.00052055,120]
[394029508,1763200323184,-151.26971218,0.00052055,120]
[394029509,1763200323193,-151.0,0.00052055,120]
[394029510,1763200323203,-151.29256741,0.00052055,120]
[394029511,1763200323216,-500.0,0.00052055,120]
[394029512,1763200323225,-500.0,0.00052055,120]
[394029513,1763200323234,-201.35616939,0.00052055,120]
[394029514,1763200323243,-151.0,0.00052055,2]
[394029515,1763200323252,-500.0,0.00052055,120]
[394029516,1763200323262,-500.0,0.00052055,120]
[394029517,1763200323271,-313.20185734,0.00052055,120]
[394029518,1763200323281,-151.0,0.00052055,2]
[394029519,1763200323292,-151.0,0.00052055,2]
[394029520,1763200323301,-153.28537276,0.00052055,2]
[394029521,1763200323311,-151.0,0.00052055,2]
[394029522,1763200323471,-500.0,0.00052055,120]
[394029523,1763200323481,-500.0,0.00052055,120]
[394029524,1763200323491,-500.0,0.00052055,120]
[394029525,1763200323501,-400.44486237,0.00052055,120]
[394029526,1763200323511,-500.0,0.00052055,120]
[394029527,1763200323520,-500.0,0.00052055,120]
[394029528,1763200323530,-500.0,0.00052055,120]
[394029529,1763200323540,-516.14385696,0.00052055,120]
[394029530,1763200323550,-500.0,0.00052055,120]
[394029531,1763200323560,-500.0,0.00052055,120]
[394029532,1763200323569,-500.0,0.00052055,120]
[394029533,1763200323579,-500.0,0.00052055,120]
[394029534,1763200323589,-517.44890047,0.00052055,120]
[394029535,1763200323598,-813.0,0.00052055,120]
[394029536,1763200323607,-813.0,0.00052055,120]
[394029537,1763200323617,-813.0,0.00052055,120]
[394029538,1763200323626,-813.0,0.00052055,120]
[394029539,1763200323636,-813.0,0.00052055,120]
[394029540,1763200323645,-813.0,0.00052055,120]
[394029541,1763200323655,-813.0,0.00052055,120]
[394029542,1763200323664,-813.0,0.00052055,120]
[394029543,1763200323674,-813.0,0.00052055,120]
[394029544,1763200323683,-813.0,0.00052055,120]
[394029545,1763200323692,-813.0,0.00052055,120]
[394029546,1763200323703,-813.0,0.00052055,120]
[394029547,1763200323714,-813.0,0.00052055,120]
[394029548,1763200323724,-813.0,0.00052055,120]
[394029549,1763200323734,-813.0,0.00052055,120]
[394029550,1763200323744,-813.0,0.00052055,120]
[394029551,1763200323753,-813.0,0.00052055,120]
[394029552,1763200323763,-813.0,0.00052055,120]
[394029553,1763200323772,-813.0,0.00052055,120]
[394029554,1763200323782,-813.0,0.00052055,120]
[394029555,1763200323791,-813.0,0.00052055,120]
[394029556,1763200323801,-813.0,0.00052055,120]
[394029557,1763200323811,-813.0,0.00052055,120]
[394029558,1763200323821,-823.2019438,0.00052055,120]
[394029559,1763200323831,-500.0,0.00052055,120]
[394029560,1763200323842,-500.0,0.00052055,120]
[394029561,1763200323852,-500.0,0.00052055,120]
[394029562,1763200323862,-608.53455167,0.00052055,120]
[394029563,1763200323872,-1844.0,0.00052055,120]
[394029564,1763200323882,-1844.0,0.00052055,120]
[394029565,1763200323891,-1844.0,0.00052055,120]
[394029566,1763200323901,-1844.0,0.00052055,120]
[394029567,1763200323911,-1844.0,0.00052055,120]
[394029568,1763200323920,-1844.0,0.00052055,120]
[394029569,1763200323929,-1844.0,0.00052055,120]
[394029570,1763200323939,-1844.0,0.00052055,120]
[394029571,1763200323948,-1844.0,0.00052055,120]
[394029572,1763200323957,-1844.0,0.00052055,120]
[394029573,1763200323966,-1844.0,0.00052055,120]
[394029574,1763200323975,-1844.0,0.00052055,120]
[394029575,1763200323985,-1844.0,0.00052055,120]
[394029576,1763200323994,-1844.0,0.00052055,120]
[394029577,1763200324003,-1844.0,0.00052055,120]
[394029578,1763200324012,-1844.0,0.00052055,120]
[394029579,1763200324022,-1844.0,0.00052055,120]
[394029580,1763200324031,-1844.0,0.00052055,120]
[394029581,1763200324040,-1844.0,0.00052055,120]
[394029582,1763200324049,-1844.0,0.00052055,120]
[394029583,1763200324060,-1844.0,0.00052055,120]
[394029584,1763200324069,-1844.0,0.00052055,120]
[394029585,1763200324078,-1844.0,0.00052055,120]
[394029586,1763200324088,-1851.57331834,0.00052055,120]
[394029587,1763200324097,-625.0,0.00052055,120]
[394029588,1763200324106,-625.0,0.00052055,120]
[394029589,1763200324115,-5000.0,0.000522,120]
[394029590,1763200324124,-500.0,0.00052328,120]
[394029591,1763200324133,-500.0,0.00052328,120]
[394029592,1763200324142,-500.0,0.00052328,120]
[394029593,1763200324151,-687.74,0.00052328,120]
[394029594,1763200324162,-554.45,0.00052328,120]
[394029595,1763200324171,-500.0,0.00052328,120]
[394029596,1763200324180,-500.0,0.00052328,120]
[394029597,1763200324189,-500.0,0.00052328,120]
[394029598,1763200324198,-582.92,0.00052328,120]
[394029599,1763200324208,-500.0,0.00052328,120]
[394029600,1763200324221,-790.87,0.00052328,120]
[394029601,1763200324230,-629.47,0.00052328,120]
[394029602,1763200324239,-673.94,0.00052328,120]
[394029603,1763200324248,-500.0,0.00052328,120]
[394029604,1763200324259,-758.17,0.00052328,120]
[394029605,1763200324268,-590.85,0.00052328,120]
[394029606,1763200324278,-500.0,0.00052328,120]
[394029607,1763200324287,-731.68,0.00052328,120]
[394029608,1763200324298,-571.3,0.00052328,120]
[394029609,1763200324307,-500.0,0.00052328,120]
[394029610,1763200324316,-346.06086983,0.00052328,120]
[394029611,1763200324326,-1090.76,0.00052328,7]
[394029612,1763200324337,-437.7641959,0.00052328,120]
[394029613,1763200324354,-3400.85,0.00052328,2]
[394029614,1763200324364,-1174.97,0.00052328,120]
[394029615,1763200324373,-618.7,0.00052328,120]
[394029616,1763200324382,-506.21,0.00052328,120]
[394029617,1763200324391,-500.0,0.00052328,120]
[394029618,1763200324401,-500.0,0.00052328,120]
[394029619,1763200324410,-536.43,0.00052328,120]
[394029620,1763200324419,-505.46,0.00052328,120]
[394029621,1763200324428,-500.0,0.00052328,120]
[394029622,1763200324438,-500.0,0.00052328,120]
[394029623,1763200324447,-500.0,0.00052328,120]
[394029624,1763200324457,-566.44,0.00052328,120]
[394029625,1763200324466,-829.99,0.00052328,120]
[394029626,1763200324476,-500.0,0.00052328,120]
[394029627,1763200324485,-500.0,0.00052328,120]
[394029628,1763200324494,-500.0,0.00052328,120]
[394029629,1763200324503,-500.0,0.00052328,120]
[394029630,1763200324513,-506.19283474,0.00052328,120]
[394029631,1763200324523,-500.0,0.00052328,120]
[394029632,1763200324535,-500.0,0.00052328,120]
[394029633,1763200324544,-546.38,0.00052328,120]
[394029634,1763200324554,-500.0,0.00052328,120]
[394029635,1763200324563,-785.26,0.00052328,120]
[394029636,1763200324573,-500.0,0.00052328,120]
[394029637,1763200324582,-649.96205136,0.00052328,120]
[394029638,1763200324591,-500.0,0.00052328,120]
[394029639,1763200324600,-500.0,0.00052328,120]
[394029640,1763200324609,-500.0,0.00052328,120]
[394029641,1763200324619,-500.0,0.00052328,120]
[394029642,1763200324628,-500.0,0.00052328,120]
[394029643,1763200324637,-500.0,0.00052328,120]
[394029644,1763200324646,-500.0,0.00052328,120]
[394029645,1763200324655,-1165.61,0.00052328,120]
[394029646,1763200324665,-629.76,0.00052328,120]
[394029647,1763200324674,-500.0,0.00052328,120]
[394029648,1763200324683,-511.51,0.00052328,2]
[394029649,1763200324692,-500.0,0.00052328,120]
[394029650,1763200324702,-500.0,0.00052328,120]
[394029651,1763200324712,-500.0,0.00052328,120]
[394029652,1763200324721,-500.0,0.00052328,120]
[394029653,1763200324730,-515.28,0.00052328,120]
[394029654,1763200324739,-500.0,0.00052328,120]
[394029655,1763200324748,-958.77,0.00052328,120]
[394029656,1763200324757,-500.0,0.00052328,120]
[394029657,1763200324766,-500.0,0.00052328,120]
[394029658,1763200324775,-500.0,0.00052328,120]
[394029659,1763200324787,-500.0,0.00052328,120]
[394029660,1763200324797,-500.0,0.00052328,120]
[394029661,1763200324806,-500.0,0.00052328,120]
[394029662,1763200324816,-531.24,0.00052328,120]
[394029663,1763200324826,-500.0,0.00052328,120]
[394029664,1763200324835,-1312.52,0.00052328,120]
[394029665,1763200324844,-666.72,0.00052328,120]
[394029666,1763200324853,-500.0,0.00052328,120]
[394029667,1763200324862,-500.0,0.00052328,120]
[394029668,1763200324872,-509.93184314,0.00052328,120]
[394029669,1763200324882,-500.0,0.00052328,120]
[394029670,1763200324891,-500.0,0.00052328,120]
[394029671,1763200324900,-505.97,0.00052328,120]
[394029672,1763200324909,-500.0,0.00052328,120]
[394029673,1763200324918,-507.65,0.00052328,2]
[394029674,1763200324927,-500.0,0.00052328,120]
[394029675,1763200324936,-655.84,0.00052328,120]
[394029676,1763200324945,-500.0,0.00052328,120]
[394029677,1763200324953,-566.68,0.00052328,120]
[394029678,1763200324963,-500.0,0.00052328,120]
[394029679,1763200324972,-629.45,0.00052328,120]
[394029680,1763200324981,-500.0,0.00052328,120]
[394029681,1763200324990,-532.44,0.00052328,120]
[394029682,1763200324999,-517.42,0.00052328,120]
[394029683,1763200325008,-500.0,0.00052328,120]
[394029684,1763200325017,-512.08,0.00052328,120]
[394029685,1763200325026,-500.0,0.00052328,120]
[394029686,1763200325036,-948.59,0.00052328,120]
[394029687,1763200325045,-500.0,0.00052328,120]
[394029688,1763200325054,-1011.89,0.00052328,120]
[394029689,1763200325063,-875.77,0.00052328,120]
[394029690,1763200325072,-500.0,0.00052328,120]
[394029691,1763200325081,-500.0,0.00052328,120]
[394029692,1763200325090,-500.0,0.00052328,120]
[394029693,1763200325099,-500.0,0.00052328,120]
[394029694,1763200325108,-500.0,0.00052328,120]
[394029695,1763200325117,-500.0,0.00052328,120]
[394029696,1763200325126,-604.95,0.00052328,120]
[394029697,1763200325135,-500.0,0.00052328,120]
[394029698,1763200325145,-564.94,0.00052328,120]
[394029699,1763200325156,-500.0,0.00052328,120]
[394029700,1763200325165,-500.0,0.00052328,120]
[394029701,1763200325174,-1119.68,0.00052328,120]
[394029702,1763200325184,-1259.05,0.00052328,120]
[394029703,1763200325194,-865.15,0.00052328,120]
[394029704,1763200325204,-425.9181669,0.00052328,120]
[394029705,1763200325216,-955.73,0.00052328,120]
[394029706,1763200325225,-500.0,0.00052328,120]
[394029707,1763200325234,-500.0,0.00052328,120]
[394029708,1763200325243,-500.0,0.00052328,21]
[394029709,1763200325252,-500.0,0.00052328,120]
[394029710,1763200325261,-457.99217373,0.00052328,120]
[394029711,1763200325270,-1298.83,0.00052328,120]
[394029712,1763200325280,-687.91,0.00052328,120]
[394029713,1763200325291,-500.0,0.00052328,120]
[394029714,1763200325300,-500.0,0.00052328,120]
[394029715,1763200325309,-1584.66,0.00052328,120]
[394029716,1763200325318,-500.0,0.00052328,120]
[394029717,1763200325327,-625.34,0.00052328,120]
[394029718,1763200325336,-500.0,0.00052328,120]
[394029719,1763200325346,-500.0,0.00052328,120]
[394029720,1763200325355,-500.0,0.00052328,120]
[394029721,1763200325365,-626.26,0.00052328,120]
[394029722,1763200325374,-776.15,0.00052328,120]
[394029723,1763200325383,-500.0,0.00052328,120]
[394029724,1763200325392,-1059.33,0.00052328,120]
[394029725,1763200325401,-500.0,0.00052328,120]
[394029726,1763200325411,-2689.19,0.00052328,120]
[394029727,1763200325420,-500.0,0.00052328,120]
[394029728,1763200325431,-1158.62,0.00052328,120]
[394029729,1763200325441,-520.26,0.00052328,120]
[394029730,1763200325452,-500.0,0.00052328,120]
[394029731,1763200325461,-500.0,0.00052328,120]
[394029732,1763200325471,-777.19,0.00052328,120]
[394029733,1763200325480,-500.0,0.00052328,120]
[394029734,1763200325489,-500.0,0.00052328,120]
[394029735,1763200325499,-500.0,0.00052328,120]
[394029736,1763200325508,-1619.88,0.00052328,30]
[394029737,1763200325517,-1089.69,0.00052328,120]
[394029738,1763200325526,-500.0,0.00052328,120]
[394029739,1763200325536,-576.07,0.00052328,120]
[394029740,1763200325546,-500.0,0.00052328,120]
[394029741,1763200325555,-1298.65,0.00052328,120]
[394029742,1763200325565,-527.42,0.00052328,120]
[394029743,1763200325573,-500.0,0.00052328,120]
[394029744,1763200325582,-2380.54,0.00052328,120]
[394029745,1763200325592,-1477.9,0.00052328,120]
[394029746,1763200325601,-630.20069622,0.00052328,120]
[394029747,1763200325611,-500.0,0.00052328,120]
[394029748,1763200325620,-979.94,0.00052328,120]
[394029749,1763200325629,-745.02,0.00052328,120]
[394029750,1763200325639,-500.0,0.00052328,120]
[394029751,1763200325648,-500.41,0.00052328,120]
[394029752,1763200325658,-327.42539021,0.00052328,120]
[394029753,1763200325667,-500.0,0.00052328,120]
[394029754,1763200325676,-500.0,0.00052328,120]
[394029755,1763200325686,-500.0,0.00052328,120]
[394029756,1763200325695,-507.72,0.00052328,120]
[394029757,1763200325705,-539.7,0.00052328,120]
[394029758,1763200325714,-789.21,0.00052328,120]
[394029759,1763200325724,-500.0,0.00052328,120]
[394029760,1763200325734,-500.0,0.00052328,120]
[394029761,1763200325743,-937.06,0.00052328,120]
[394029762,1763200325752,-500.0,0.00052328,120]
[394029763,1763200325761,-500.0,0.00052328,120]
[394029764,1763200325771,-523.49,0.00052328,120]
[394029765,1763200325782,-571.26,0.00052328,120]
[394029766,1763200325799,-500.0,0.00052328,120]
[394029767,1763200325808,-840.74,0.00052328,120]
[394029768,1763200325875,-839.73,0.00052328,120]
[394029769,1763200325885,-500.0,0.00052328,120]
[394029770,1763200325894,-500.0,0.00052328,120]
[394029771,1763200325904,-548.3,0.00052328,120]
[394029772,1763200325913,-533.64,0.00052328,120]
[394029773,1763200325923,-500.0,0.00052328,120]
[394029774,1763200325932,-500.0,0.00052328,120]
[394029775,1763200325942,-1390.62,0.00052328,120]
[394029776,1763200325951,-500.0,0.00052328,120]
[394029777,1763200325960,-572.61,0.00052328,120]
[394029778,1763200325970,-1276.71,0.00052328,120]
[394029779,1763200325979,-1188.94,0.00052328,120]
[394029780,1763200325988,-1077.77,0.00052328,120]
[394029781,1763200325998,-500.0,0.00052328,120]
[394029782,1763200326007,-500.0,0.00052328,120]
[394029783,1763200326017,-1791.91,0.00052328,120]
[394029784,1763200326026,-500.0,0.00052328,120]
[394029785,1763200326036,-500.0,0.00052328,120]
[394029786,1763200326045,-500.0,0.00052328,120]
[394029787,1763200326054,-500.0,0.00052328,120]
[394029788,1763200326063,-1017.14,0.00052328,120]
[394029789,1763200326073,-500.0,0.00052328,120]
[394029790,1763200326082,-500.0,0.00052328,120]
[394029791,1763200326091,-936.67,0.00052328,120]
[394029792,1763200326100,-500.0,0.00052328,120]
[394029793,1763200326109,-500.0,0.00052328,120]
[394029794,1763200326118,-649.89,0.00052328,120]
[394029795,1763200326128,-1776.75,0.00052328,120]
[394029796,1763200326137,-500.0,0.00052328,120]
[394029797,1763200326146,-500.0,0.00052328,120]
[394029798,1763200326155,-500.0,0.00052328,120]
[394029799,1763200326164,-500.0,0.00052328,120]
[394029800,1763200326173,-532.97,0.00052328,120]
[394029801,1763200326182,-500.0,0.00052328,120]
[394029802,1763200326191,-777.09,0.00052328,120]
[394029803,1763200326201,-500.0,0.00052328,120]
[394029804,1763200326213,-500.0,0.00052328,120]
[394029805,1763200326222,-1276.7,0.00052328,7]
[394029806,1763200326232,-927.9,0.00052328,120]
[394029807,1763200326241,-500.0,0.00052328,120]
[394029808,1763200326251,-979.1,0.00052328,120]
[394029809,1763200326262,-769.66,0.00052328,120]
[394029810,1763200326273,-500.0,0.00052328,120]
[394029811,1763200326283,-500.0,0.00052328,120]
[394029812,1763200326293,-565.85007846,0.00052328,120]
[394029813,1763200326303,-500.0,0.00052328,120]